[Event "*** Titled Tuesday Blitz"]
[Site "Chess.com"]
[Date "2020.12.29"]
[Round "5"]
[White "Zemerovv"]
[Black "Snowflake"]
[Result "0-1"]
[WhiteElo "2171"]
[BlackElo "2436"]
[TimeControl "180+1"]
[EndTime "10:51:31 PST"]
[Termination "Snowflake won by resignation"]

1. Nf3 {[%clk 0:03:00.9]} 1... b6 {[%clk 0:02:53.5]} 2. c4 {[%clk 0:03:00.6]}
2... Bb7 {[%clk 0:02:54.4]} 3. Nc3 {[%clk 0:03:00.6]} 3... f5 {[%clk 0:02:52.2]}
4. g3 {[%clk 0:02:58.5]} 4... g6 {[%clk 0:02:46.6]} 5. Bg2 {[%clk 0:02:58.2]}
5... Bg7 {[%clk 0:02:47]} 6. O-O {[%clk 0:02:57.6]} 6... Nf6 {[%clk 0:02:47.2]}
7. d3 {[%clk 0:02:56.8]} 7... O-O {[%clk 0:02:45.9]} 8. Bg5 {[%clk 0:02:54.7]}
8... h6 {[%clk 0:02:40.4]} 9. Bd2 {[%clk 0:02:53.6]} 9... a5 {[%clk 0:02:34.2]}
10. Re1 {[%clk 0:02:50.6]} 10... d6 {[%clk 0:02:32]} 11. Qc1 {[%clk 0:02:49.5]}
11... g5 {[%clk 0:02:23.4]} 12. e4 {[%clk 0:02:49.1]} 12... fxe4 {[%clk
0:02:05.1]} 13. dxe4 {[%clk 0:02:48.8]} 13... e5 {[%clk 0:02:04.4]} 14. Nd5
{[%clk 0:02:48.2]} 14... Nc6 {[%clk 0:02:02]} 15. Bc3 {[%clk 0:02:44.5]} 15...
Kh8 {[%clk 0:01:57.3]} 16. h4 {[%clk 0:02:41.8]} 16... g4 {[%clk 0:01:53.4]} 17.
Nh2 {[%clk 0:02:41.3]} 17... Qd7 {[%clk 0:01:45.6]} 18. Ne3 {[%clk 0:02:38.9]}
18... Nd4 {[%clk 0:01:34.3]} 19. Bxd4 {[%clk 0:02:37.3]} 19... exd4 {[%clk
0:01:35.2]} 20. Nf5 {[%clk 0:02:37.1]} 20... Bxe4 {[%clk 0:01:23.4]} 21. Bxe4
{[%clk 0:02:35.2]} 21... Nxe4 {[%clk 0:01:23.5]} 22. Nxg7 {[%clk 0:02:34.7]}
22... Nxf2 {[%clk 0:00:57]} 23. Qxh6+ {[%clk 0:02:33.4]} 23... Kg8 {[%clk
0:00:57.6]} 24. Nh5 {[%clk 0:02:30.5]} 24... Nh3+ {[%clk 0:00:57]} 25. Kh1
{[%clk 0:02:28.9]} 25... Qc6+ {[%clk 0:00:55.5]} 0-1

[Event "*** Titled Tuesday Blitz"]
[Site "Chess.com"]
[Date "2020.12.29"]
[Round "5"]
[White "1g41-0"]
[Black "exoticprincess"]
[Result "0-1"]
[WhiteElo "2617"]
[BlackElo "2891"]
[TimeControl "180+1"]
[EndTime "10:51:40 PST"]
[Termination "exoticprincess won by resignation"]

1. d4 {[%clk 0:02:58]} 1... d5 {[%clk 0:02:58.1]} 2. c4 {[%clk 0:02:57.6]} 2...
c6 {[%clk 0:02:57.1]} 3. cxd5 {[%clk 0:02:57.6]} 3... cxd5 {[%clk 0:02:56.5]} 4.
Nc3 {[%clk 0:02:58.5]} 4... Nf6 {[%clk 0:02:54.8]} 5. Bf4 {[%clk 0:02:58.8]}
5... Nc6 {[%clk 0:02:18.8]} 6. Rc1 {[%clk 0:02:51.9]} 6... a6 {[%clk 0:02:16.6]}
7. Nf3 {[%clk 0:02:47.4]} 7... Bf5 {[%clk 0:02:13.8]} 8. Ne5 {[%clk 0:02:48]}
8... Rc8 {[%clk 0:02:11.7]} 9. Qb3 {[%clk 0:02:45.7]} 9... Na5 {[%clk
0:01:57.5]} 10. Qd1 {[%clk 0:02:36.1]} 10... e6 {[%clk 0:01:54.4]} 11. e3 {[%clk
0:02:32.4]} 11... Be7 {[%clk 0:01:50.7]} 12. b4 {[%clk 0:02:06.6]} 12... O-O
{[%clk 0:01:39.6]} 13. a3 {[%clk 0:01:44.4]} 13... Nc6 {[%clk 0:01:35.7]} 14.
Bd3 {[%clk 0:01:39.6]} 14... Nxb4 {[%clk 0:01:30.5]} 15. axb4 {[%clk 0:01:31.9]}
15... Bxb4 {[%clk 0:01:29.9]} 16. Bxf5 {[%clk 0:01:23.6]} 16... Rxc3 {[%clk
0:01:24.6]} 0-1

[Event "*** Titled Tuesday Blitz"]
[Site "Chess.com"]
[Date "2020.12.29"]
[Round "5"]
[White "Airquake"]
[Black "supertfc"]
[Result "1-0"]
[WhiteElo "2565"]
[BlackElo "2388"]
[TimeControl "180+1"]
[EndTime "10:52:11 PST"]
[Termination "Airquake won by resignation"]

1. e4 {[%clk 0:02:56.7]} 1... e5 {[%clk 0:02:59.2]} 2. Nf3 {[%clk 0:02:56.8]}
2... Nc6 {[%clk 0:02:59.5]} 3. Bb5 {[%clk 0:02:56.2]} 3... a6 {[%clk 0:02:59.7]}
4. Ba4 {[%clk 0:02:56.4]} 4... Nf6 {[%clk 0:02:59.8]} 5. d3 {[%clk 0:02:56.9]}
5... d6 {[%clk 0:02:57.7]} 6. c3 {[%clk 0:02:57.1]} 6... g6 {[%clk 0:02:57.6]}
7. O-O {[%clk 0:02:57.3]} 7... Bg7 {[%clk 0:02:57.9]} 8. Nbd2 {[%clk 0:02:56.3]}
8... O-O {[%clk 0:02:57.8]} 9. h3 {[%clk 0:02:56.9]} 9... Nd7 {[%clk 0:02:47.9]}
10. Bc2 {[%clk 0:02:52.8]} 10... h6 {[%clk 0:02:44.5]} 11. Nc4 {[%clk
0:02:49.6]} 11... Qe8 {[%clk 0:02:34.2]} 12. d4 {[%clk 0:02:41.8]} 12... Kh8
{[%clk 0:02:12]} 13. Re1 {[%clk 0:02:40.9]} 13... f5 {[%clk 0:02:03.2]} 14. exf5
{[%clk 0:02:38.9]} 14... gxf5 {[%clk 0:02:04.1]} 15. dxe5 {[%clk 0:02:38.8]}
15... dxe5 {[%clk 0:02:03.7]} 16. Nfxe5 {[%clk 0:02:26.3]} 16... Ndxe5 {[%clk
0:01:59.8]} 17. Nxe5 {[%clk 0:02:13.4]} 17... Nxe5 {[%clk 0:01:51.3]} 18. Bf4
{[%clk 0:02:05.8]} 18... Qb5 {[%clk 0:01:33.6]} 19. a4 {[%clk 0:01:50.1]} 19...
Qc5 {[%clk 0:01:30.6]} 20. Qh5 {[%clk 0:01:48.1]} 20... Kh7 {[%clk 0:01:05.3]}
21. Rxe5 {[%clk 0:01:40]} 21... Bxe5 {[%clk 0:00:59.9]} 22. Qxh6+ {[%clk
0:01:39.4]} 22... Kg8 {[%clk 0:00:59.9]} 23. Bb3+ {[%clk 0:01:40.3]} 23... Rf7
{[%clk 0:00:55.8]} 24. Qg6+ {[%clk 0:01:39.3]} 24... Kh8 {[%clk 0:00:47.4]} 25.
Qxf7 {[%clk 0:01:39.4]} 1-0

[Event "*** Titled Tuesday Blitz"]
[Site "Chess.com"]
[Date "2020.12.29"]
[Round "5"]
[White "MelihKaanCan"]
[Black "viktorko131"]
[Result "1-0"]
[WhiteElo "2326"]
[BlackElo "2084"]
[TimeControl "180+1"]
[EndTime "10:52:14 PST"]
[Termination "MelihKaanCan won on time"]

1. e4 {[%clk 0:03:00.9]} 1... c5 {[%clk 0:02:59.3]} 2. Nf3 {[%clk 0:03:01]} 2...
d6 {[%clk 0:02:59.7]} 3. c3 {[%clk 0:03:01.3]} 3... Nf6 {[%clk 0:02:56.7]} 4. h3
{[%clk 0:03:01.6]} 4... Nc6 {[%clk 0:02:32.5]} 5. Bd3 {[%clk 0:02:59.2]} 5... g6
{[%clk 0:02:20.5]} 6. Bc2 {[%clk 0:02:58.7]} 6... Bg7 {[%clk 0:02:20.1]} 7. O-O
{[%clk 0:02:59.3]} 7... O-O {[%clk 0:02:19.8]} 8. d4 {[%clk 0:03:00]} 8... cxd4
{[%clk 0:02:15.3]} 9. cxd4 {[%clk 0:03:00.9]} 9... Nb4 {[%clk 0:02:15.1]} 10.
Bb3 {[%clk 0:03:01.4]} 10... Bd7 {[%clk 0:00:22.9]} 11. Nc3 {[%clk 0:02:57.3]}
11... a5 {[%clk 0:00:12.5]} 12. a3 {[%clk 0:02:57.3]} 12... Nc6 {[%clk
0:00:08.4]} 13. e5 {[%clk 0:02:57]} 13... Ne8 {[%clk 0:00:05.3]} 14. Bf4 {[%clk
0:02:49.4]} 14... dxe5 {[%clk 0:00:04]} 15. dxe5 {[%clk 0:02:50.3]} 15... Nc7
{[%clk 0:00:03.9]} 16. Re1 {[%clk 0:02:27.9]} 16... Be6 {[%clk 0:00:03.7]} 17.
Bc2 {[%clk 0:02:24.6]} 17... h6 {[%clk 0:00:03.2]} 18. Qe2 {[%clk 0:02:17.1]}
18... Kh7 {[%clk 0:00:01.9]} 19. Rad1 {[%clk 0:02:17.5]} 19... Qc8 {[%clk
0:00:01.7]} 20. h4 {[%clk 0:02:12]} 20... Rd8 {[%clk 0:00:01.4]} 21. h5 {[%clk
0:02:12.2]} 1-0

[Event "*** Titled Tuesday Blitz"]
[Site "Chess.com"]
[Date "2020.12.29"]
[Round "5"]
[White "GM4life"]
[Black "dozer80"]
[Result "1-0"]
[WhiteElo "2437"]
[BlackElo "2602"]
[TimeControl "180+1"]
[EndTime "10:52:24 PST"]
[Termination "GM4life won by resignation"]

1. e4 {[%clk 0:03:00.9]} 1... c5 {[%clk 0:02:57.8]} 2. Nf3 {[%clk 0:03:00.5]}
2... Nc6 {[%clk 0:02:57.6]} 3. d4 {[%clk 0:03:01]} 3... cxd4 {[%clk 0:02:58.5]}
4. Nxd4 {[%clk 0:03:01.3]} 4... Nf6 {[%clk 0:02:59]} 5. Nc3 {[%clk 0:03:01.5]}
5... d6 {[%clk 0:02:59.7]} 6. Bg5 {[%clk 0:03:00.8]} 6... Bd7 {[%clk 0:02:59]}
7. Qd2 {[%clk 0:03:01.1]} 7... a6 {[%clk 0:02:51.1]} 8. Bxf6 {[%clk 0:02:59.6]}
8... gxf6 {[%clk 0:02:50.9]} 9. Be2 {[%clk 0:02:49.7]} 9... h5 {[%clk 0:02:43]}
10. Nf5 {[%clk 0:02:46.9]} 10... Bxf5 {[%clk 0:02:20.8]} 11. exf5 {[%clk
0:02:45.8]} 11... h4 {[%clk 0:02:19.5]} 12. O-O-O {[%clk 0:02:39.4]} 12... Rc8
{[%clk 0:02:11.4]} 13. Kb1 {[%clk 0:02:38.8]} 13... Bh6 {[%clk 0:01:51.2]} 14.
f4 {[%clk 0:02:38.1]} 14... Rg8 {[%clk 0:01:51.1]} 15. Bf3 {[%clk 0:02:36]}
15... Qd7 {[%clk 0:01:41.8]} 16. g4 {[%clk 0:02:34.9]} 16... Ne5 {[%clk
0:01:38.6]} 17. Be2 {[%clk 0:02:16.9]} 17... h3 {[%clk 0:01:10.3]} 18. Rhg1
{[%clk 0:02:09.7]} 18... Nc4 {[%clk 0:01:00.9]} 19. Qd4 {[%clk 0:02:07.2]} 19...
Qc6 {[%clk 0:00:57.5]} 20. Nd5 {[%clk 0:01:59.9]} 20... Na3+ {[%clk 0:00:54]}
21. bxa3 {[%clk 0:01:57.7]} 21... Qxc2+ {[%clk 0:00:54.2]} 22. Ka1 {[%clk
0:01:58.2]} 22... Qxe2 {[%clk 0:00:47.4]} 23. Rge1 {[%clk 0:01:48.3]} 23... Qxh2
{[%clk 0:00:45.4]} 24. Rxe7+ {[%clk 0:01:39.8]} 24... Kf8 {[%clk 0:00:45.6]} 25.
Rxf7+ {[%clk 0:01:29.5]} 1-0

[Event "*** Titled Tuesday Blitz"]
[Site "Chess.com"]
[Date "2020.12.29"]
[Round "5"]
[White "tylityli"]
[Black "Iskusnyh"]
[Result "0-1"]
[WhiteElo "2360"]
[BlackElo "2569"]
[TimeControl "180+1"]
[EndTime "10:52:25 PST"]
[Termination "Iskusnyh won by resignation"]

1. d4 {[%clk 0:02:59.7]} 1... d5 {[%clk 0:02:59.3]} 2. c4 {[%clk 0:02:58.5]}
2... c6 {[%clk 0:02:58.6]} 3. cxd5 {[%clk 0:02:58.1]} 3... cxd5 {[%clk
0:02:57.9]} 4. Bf4 {[%clk 0:02:59]} 4... e6 {[%clk 0:02:54.5]} 5. e3 {[%clk
0:02:58.4]} 5... Bd6 {[%clk 0:02:53.4]} 6. Bxd6 {[%clk 0:02:57.2]} 6... Qxd6
{[%clk 0:02:53.5]} 7. Nc3 {[%clk 0:02:58.1]} 7... Nc6 {[%clk 0:02:53.3]} 8. f4
{[%clk 0:02:57.7]} 8... Nge7 {[%clk 0:02:53.2]} 9. Nf3 {[%clk 0:02:57.1]} 9...
O-O {[%clk 0:02:53.1]} 10. Bd3 {[%clk 0:02:56.7]} 10... f6 {[%clk 0:02:43.4]}
11. O-O {[%clk 0:02:52.2]} 11... Bd7 {[%clk 0:02:42.8]} 12. Rc1 {[%clk
0:02:47.2]} 12... Be8 {[%clk 0:02:40.3]} 13. a3 {[%clk 0:02:43.1]} 13... Bg6
{[%clk 0:02:21.7]} 14. b4 {[%clk 0:02:35.8]} 14... Bxd3 {[%clk 0:02:11.3]} 15.
Qxd3 {[%clk 0:02:34.9]} 15... Rac8 {[%clk 0:02:11.8]} 16. Nb5 {[%clk 0:02:13]}
16... Qd7 {[%clk 0:02:08.1]} 17. Rc5 {[%clk 0:02:11.1]} 17... a6 {[%clk
0:01:58]} 18. Nc3 {[%clk 0:02:00]} 18... b6 {[%clk 0:01:57.3]} 19. Rxc6 {[%clk
0:01:53]} 19... Rxc6 {[%clk 0:01:47.1]} 20. Ne2 {[%clk 0:01:49.7]} 20... Nf5
{[%clk 0:01:35.3]} 21. g4 {[%clk 0:01:37]} 21... Nd6 {[%clk 0:01:32.6]} 22. Qxa6
{[%clk 0:01:35]} 22... b5 {[%clk 0:01:28.2]} 23. Qa5 {[%clk 0:01:14.7]} 23...
Qb7 {[%clk 0:01:27.1]} 24. a4 {[%clk 0:01:08.8]} 24... Ra6 {[%clk 0:01:15.2]}
0-1

[Event "*** Titled Tuesday Blitz"]
[Site "Chess.com"]
[Date "2020.12.29"]
[Round "5"]
[White "Chernobay_Artem"]
[Black "1f3_2g41-0"]
[Result "1-0"]
[WhiteElo "2642"]
[BlackElo "2427"]
[TimeControl "180+1"]
[EndTime "10:52:31 PST"]
[Termination "Chernobay_Artem won by resignation"]

1. d4 {[%clk 0:03:00.9]} 1... Nf6 {[%clk 0:02:59.9]} 2. c4 {[%clk 0:02:53.4]}
2... g6 {[%clk 0:02:58.8]} 3. Nc3 {[%clk 0:02:52.7]} 3... d5 {[%clk 0:02:59.3]}
4. cxd5 {[%clk 0:02:51.9]} 4... Nxd5 {[%clk 0:03:00.2]} 5. e4 {[%clk 0:02:52.2]}
5... Nxc3 {[%clk 0:03:00.7]} 6. bxc3 {[%clk 0:02:53.1]} 6... Bg7 {[%clk
0:03:01.1]} 7. Bc4 {[%clk 0:02:53.6]} 7... O-O {[%clk 0:03:00.7]} 8. Ne2 {[%clk
0:02:53.6]} 8... c5 {[%clk 0:03:01.4]} 9. O-O {[%clk 0:02:53.1]} 9... Nc6 {[%clk
0:03:00.2]} 10. Be3 {[%clk 0:02:49.5]} 10... e5 {[%clk 0:02:59.4]} 11. dxc5
{[%clk 0:02:38.7]} 11... Qc7 {[%clk 0:02:56.3]} 12. Bd5 {[%clk 0:02:33.4]} 12...
Rd8 {[%clk 0:02:53.2]} 13. c4 {[%clk 0:02:33.2]} 13... Na5 {[%clk 0:02:34]} 14.
Qc2 {[%clk 0:01:42.6]} 14... Kh8 {[%clk 0:02:26.8]} 15. Rab1 {[%clk 0:01:38.2]}
15... f5 {[%clk 0:02:23]} 16. Nc3 {[%clk 0:01:21.7]} 16... f4 {[%clk 0:02:16.1]}
17. Nb5 {[%clk 0:01:21.6]} 17... Qe7 {[%clk 0:02:06.9]} 18. Nd6 {[%clk
0:01:07.1]} 18... Be6 {[%clk 0:01:51.4]} 19. Bd2 {[%clk 0:01:04.5]} 19... b6
{[%clk 0:01:35]} 20. Bxa5 {[%clk 0:01:01.8]} 20... Bxd5 {[%clk 0:01:32.1]} 21.
cxd5 {[%clk 0:01:00.2]} 21... bxa5 {[%clk 0:01:32.4]} 22. Rb7 {[%clk 0:00:58.1]}
22... Rd7 {[%clk 0:01:32.8]} 23. c6 {[%clk 0:00:56.3]} 23... Rxb7 {[%clk
0:01:29.5]} 24. cxb7 {[%clk 0:00:50.5]} 24... f3 {[%clk 0:01:30.1]} 25. bxa8=Q+
{[%clk 0:00:49.8]} 25... Bf8 {[%clk 0:01:30.1]} 26. gxf3 {[%clk 0:00:48.4]}
26... Kg8 {[%clk 0:01:29.3]} 27. Qcc8 {[%clk 0:00:40.8]} 27... Qxd6 {[%clk
0:01:28.5]} 28. Qe6+ {[%clk 0:00:40.5]} 1-0

[Event "*** Titled Tuesday Blitz"]
[Site "Chess.com"]
[Date "2020.12.29"]
[Round "5"]
[White "Matveev_Vladimir"]
[Black "Chessdreamer2020"]
[Result "1-0"]
[WhiteElo "2704"]
[BlackElo "2488"]
[TimeControl "180+1"]
[EndTime "10:52:35 PST"]
[Termination "Matveev_Vladimir won by resignation"]

1. d4 {[%clk 0:03:00.9]} 1... d6 {[%clk 0:02:58.6]} 2. c4 {[%clk 0:03:01.1]}
2... e5 {[%clk 0:02:57.7]} 3. Nf3 {[%clk 0:03:01.6]} 3... e4 {[%clk 0:02:56.7]}
4. Nfd2 {[%clk 0:02:59.3]} 4... f5 {[%clk 0:02:57.3]} 5. Nc3 {[%clk 0:02:59.1]}
5... Nf6 {[%clk 0:02:57.8]} 6. Nb3 {[%clk 0:02:56.7]} 6... g6 {[%clk 0:02:58.1]}
7. Bg5 {[%clk 0:02:54.8]} 7... Bg7 {[%clk 0:02:58.3]} 8. e3 {[%clk 0:02:54.9]}
8... O-O {[%clk 0:02:57.5]} 9. Be2 {[%clk 0:02:55.2]} 9... h6 {[%clk 0:02:57.2]}
10. Bxf6 {[%clk 0:02:49.6]} 10... Qxf6 {[%clk 0:02:53.8]} 11. g3 {[%clk
0:02:39.5]} 11... c6 {[%clk 0:02:53.3]} 12. h4 {[%clk 0:02:38.5]} 12... Be6
{[%clk 0:02:36.7]} 13. c5 {[%clk 0:02:36.4]} 13... Rd8 {[%clk 0:02:25]} 14. cxd6
{[%clk 0:02:35.1]} 14... Rxd6 {[%clk 0:02:24]} 15. Nc5 {[%clk 0:02:35.8]} 15...
b6 {[%clk 0:02:17.4]} 16. Nxe6 {[%clk 0:02:34.7]} 16... Qxe6 {[%clk 0:02:17.5]}
17. Qb3 {[%clk 0:02:33.4]} 17... Qxb3 {[%clk 0:02:13]} 18. axb3 {[%clk
0:02:34.3]} 18... b5 {[%clk 0:01:57.2]} 19. b4 {[%clk 0:02:28.9]} 19... Bf8
{[%clk 0:01:50.7]} 20. g4 {[%clk 0:02:27.8]} 20... Rd7 {[%clk 0:01:42]} 21. h5
{[%clk 0:02:27.5]} 21... Bxb4 {[%clk 0:01:32.4]} 22. hxg6 {[%clk 0:02:27.4]}
22... f4 {[%clk 0:01:29.1]} 23. Rxh6 {[%clk 0:02:24.3]} 23... f3 {[%clk
0:01:25.4]} 24. Bf1 {[%clk 0:02:22.5]} 24... a5 {[%clk 0:01:03.9]} 25. g5 {[%clk
0:02:17.7]} 25... a4 {[%clk 0:01:02.4]} 26. Bh3 {[%clk 0:02:15.7]} 26... Re7
{[%clk 0:00:55.8]} 27. Kd2 {[%clk 0:02:07]} 27... Na6 {[%clk 0:00:54.1]} 28. Rh1
{[%clk 0:01:56.3]} 28... Nc7 {[%clk 0:00:41.6]} 29. Bf5 {[%clk 0:01:55.3]} 1-0

[Event "*** Titled Tuesday Blitz"]
[Site "Chess.com"]
[Date "2020.12.29"]
[Round "5"]
[White "MrTattaglia"]
[Black "Ermito2020"]
[Result "0-1"]
[WhiteElo "2942"]
[BlackElo "2652"]
[TimeControl "180+1"]
[EndTime "10:52:36 PST"]
[Termination "Ermito2020 won by resignation"]

1. g3 {[%clk 0:02:59.3]} 1... Nf6 {[%clk 0:02:59.3]} 2. Bg2 {[%clk 0:02:58.8]}
2... g6 {[%clk 0:02:58.9]} 3. c4 {[%clk 0:02:59.3]} 3... Bg7 {[%clk 0:02:58.5]}
4. Nc3 {[%clk 0:02:59.7]} 4... d6 {[%clk 0:02:57.9]} 5. d3 {[%clk 0:02:59.7]}
5... e5 {[%clk 0:02:56.2]} 6. Bg5 {[%clk 0:02:58.4]} 6... h6 {[%clk 0:02:55.5]}
7. Bxf6 {[%clk 0:02:57.9]} 7... Bxf6 {[%clk 0:02:55.2]} 8. Nf3 {[%clk
0:02:58.5]} 8... Bg7 {[%clk 0:02:53.4]} 9. Nd2 {[%clk 0:02:58.8]} 9... c6 {[%clk
0:02:49.1]} 10. O-O {[%clk 0:02:58.9]} 10... O-O {[%clk 0:02:48.7]} 11. Rb1
{[%clk 0:02:59.3]} 11... a5 {[%clk 0:02:44.3]} 12. a3 {[%clk 0:02:58.9]} 12...
Be6 {[%clk 0:02:43.8]} 13. b4 {[%clk 0:02:59.3]} 13... axb4 {[%clk 0:02:43.5]}
14. axb4 {[%clk 0:03:00.2]} 14... e4 {[%clk 0:02:36.4]} 15. Qc2 {[%clk
0:02:48.4]} 15... exd3 {[%clk 0:02:36]} 16. Qxd3 {[%clk 0:02:49.3]} 16... Nd7
{[%clk 0:02:33.4]} 17. Qc2 {[%clk 0:02:35.1]} 17... Ne5 {[%clk 0:02:23.6]} 18.
Qb3 {[%clk 0:02:30.8]} 18... b5 {[%clk 0:02:17.7]} 19. Qc2 {[%clk 0:02:30.4]}
19... Nxc4 {[%clk 0:02:02.5]} 20. Nxc4 {[%clk 0:02:26.1]} 20... Bxc4 {[%clk
0:02:01.1]} 21. Rfd1 {[%clk 0:01:42.9]} 21... d5 {[%clk 0:02:00.1]} 22. e4
{[%clk 0:01:24.4]} 22... Ra3 {[%clk 0:01:58.4]} 23. Ne2 {[%clk 0:00:12.4]} 23...
Ra2 {[%clk 0:01:55.6]} 0-1

[Event "*** Titled Tuesday Blitz"]
[Site "Chess.com"]
[Date "2020.12.29"]
[Round "5"]
[White "Europe03"]
[Black "r31415"]
[Result "0-1"]
[WhiteElo "2316"]
[BlackElo "2502"]
[TimeControl "180+1"]
[EndTime "10:52:39 PST"]
[Termination "r31415 won by resignation"]

1. Nf3 {[%clk 0:02:56.2]} 1... d5 {[%clk 0:02:59.1]} 2. g3 {[%clk 0:02:53.5]}
2... Bg4 {[%clk 0:02:57.8]} 3. Bg2 {[%clk 0:02:53.5]} 3... Nd7 {[%clk
0:02:57.5]} 4. d4 {[%clk 0:02:49.9]} 4... Ngf6 {[%clk 0:02:57.6]} 5. O-O {[%clk
0:02:44.2]} 5... e6 {[%clk 0:02:57.7]} 6. c4 {[%clk 0:02:41.2]} 6... c6 {[%clk
0:02:56.7]} 7. cxd5 {[%clk 0:02:40.9]} 7... cxd5 {[%clk 0:02:50.7]} 8. Nc3
{[%clk 0:02:34.7]} 8... Bd6 {[%clk 0:02:48.3]} 9. b3 {[%clk 0:02:31.2]} 9... O-O
{[%clk 0:02:42.5]} 10. Nb5 {[%clk 0:02:25.4]} 10... Be7 {[%clk 0:02:40.7]} 11.
Bf4 {[%clk 0:02:19.8]} 11... a6 {[%clk 0:02:40]} 12. Nc3 {[%clk 0:01:56.5]}
12... Qa5 {[%clk 0:02:39.5]} 13. Bd2 {[%clk 0:01:41.3]} 13... Bb4 {[%clk
0:02:29.8]} 14. Na4 {[%clk 0:01:21.7]} 14... Bxd2 {[%clk 0:02:08]} 15. Nxd2
{[%clk 0:01:22.6]} 15... b5 {[%clk 0:02:07.5]} 16. Nc5 {[%clk 0:01:08.8]} 16...
Nxc5 {[%clk 0:01:55.2]} 17. dxc5 {[%clk 0:01:09.7]} 17... Rac8 {[%clk
0:01:53.7]} 18. a3 {[%clk 0:00:32.4]} 18... b4 {[%clk 0:01:42.5]} 19. axb4
{[%clk 0:00:32.4]} 19... Qxb4 {[%clk 0:01:42.5]} 20. Rxa6 {[%clk 0:00:32.9]}
20... Rxc5 {[%clk 0:01:38.2]} 21. Nf3 {[%clk 0:00:31.7]} 21... Rb8 {[%clk
0:01:32.7]} 22. Ne5 {[%clk 0:00:31.7]} 22... Qb5 {[%clk 0:01:26.8]} 23. Ra7
{[%clk 0:00:29.2]} 23... Bxe2 {[%clk 0:01:24.9]} 0-1

[Event "*** Titled Tuesday Blitz"]
[Site "Chess.com"]
[Date "2020.12.29"]
[Round "5"]
[White "chescomhuynya"]
[Black "TengisChess"]
[Result "1-0"]
[WhiteElo "2590"]
[BlackElo "2410"]
[TimeControl "180+1"]
[EndTime "10:52:41 PST"]
[Termination "chescomhuynya won by resignation"]

1. d4 {[%clk 0:03:00.9]} 1... d5 {[%clk 0:02:59.8]} 2. c4 {[%clk 0:03:01.2]}
2... c6 {[%clk 0:02:59.6]} 3. Nf3 {[%clk 0:03:01]} 3... Nf6 {[%clk 0:02:59.7]}
4. g3 {[%clk 0:03:01.7]} 4... g6 {[%clk 0:02:55.9]} 5. Bg2 {[%clk 0:03:00.6]}
5... Bg7 {[%clk 0:02:55.7]} 6. O-O {[%clk 0:03:01]} 6... O-O {[%clk 0:02:55.2]}
7. Qb3 {[%clk 0:03:00.7]} 7... e6 {[%clk 0:02:49.6]} 8. Nc3 {[%clk 0:03:00.3]}
8... Nbd7 {[%clk 0:02:49.6]} 9. Bf4 {[%clk 0:02:55]} 9... Nb6 {[%clk 0:02:44.1]}
10. Ne5 {[%clk 0:02:52.1]} 10... Nh5 {[%clk 0:02:40]} 11. Rfd1 {[%clk
0:02:49.5]} 11... Nxf4 {[%clk 0:02:35.3]} 12. gxf4 {[%clk 0:02:49.9]} 12... Bxe5
{[%clk 0:02:34.4]} 13. dxe5 {[%clk 0:02:50.4]} 13... Nxc4 {[%clk 0:02:33.4]} 14.
e4 {[%clk 0:02:50.5]} 14... Qh4 {[%clk 0:02:27.6]} 15. exd5 {[%clk 0:02:49.2]}
15... exd5 {[%clk 0:02:23.7]} 16. Ne2 {[%clk 0:02:19.2]} 16... Bg4 {[%clk
0:02:20.1]} 17. f3 {[%clk 0:02:18.5]} 17... Bh3 {[%clk 0:02:19.6]} 18. Qc3
{[%clk 0:02:14.5]} 18... Bxg2 {[%clk 0:02:04.9]} 19. Kxg2 {[%clk 0:02:13.2]}
19... Rad8 {[%clk 0:02:02.7]} 20. b3 {[%clk 0:02:11.3]} 20... Nb6 {[%clk
0:02:02.2]} 21. a4 {[%clk 0:02:06]} 21... Rfe8 {[%clk 0:01:36.4]} 22. a5 {[%clk
0:02:05.4]} 22... Nd7 {[%clk 0:01:36.5]} 23. a6 {[%clk 0:02:05.6]} 23... bxa6
{[%clk 0:01:31.7]} 24. Rxa6 {[%clk 0:02:04.9]} 24... f6 {[%clk 0:01:29]} 25.
Qxc6 {[%clk 0:02:04.2]} 25... fxe5 {[%clk 0:01:28.6]} 26. Qxd5+ {[%clk
0:02:04.4]} 26... Kh8 {[%clk 0:01:28.3]} 27. Rd6 {[%clk 0:02:01.2]} 27... exf4
{[%clk 0:01:23.4]} 28. Ng1 {[%clk 0:01:59.4]} 28... Re5 {[%clk 0:01:17.2]} 29.
Qd4 {[%clk 0:01:51.3]} 29... Qg5+ {[%clk 0:01:12.9]} 30. Kh1 {[%clk 0:01:51.2]}
30... Rc8 {[%clk 0:01:09.2]} 31. Rxd7 {[%clk 0:01:49.6]} 31... Rc2 {[%clk
0:01:09.1]} 32. Rd2 {[%clk 0:01:30.9]} 32... Rc1 {[%clk 0:01:09.1]} 33. Rg2
{[%clk 0:01:26.7]} 33... Qf5 {[%clk 0:00:59.5]} 34. Re7 {[%clk 0:01:23.3]} 34...
Re1 {[%clk 0:00:58.7]} 35. Qd8+ {[%clk 0:01:23]} 1-0